[Event "Titled Tuesday Blitz December 20 Late 2022"]
[White "Miszler, Levente"]
[Black "Biernacki, Mark"]
[WhiteFideId "763276"]
[BlackFideId "2082322"]
[WhiteElo "2176"]
[BlackElo "1970"]
[Result "0-1"]
[Round "06"]
[TimeControl "180+1"]
[Date "2022.12.21"]
[WhiteClock "0:00:16"]
[BlackClock "0:00:16"]

1. e4 {[%clk 0:03:00]}  c5 {[%clk 0:02:59]} 2. Nc3 {[%clk 0:02:58]}  Nc6 {[%clk 0:02:58]} 3. f4 {[%clk 0:02:58]}  g6 {[%clk 0:02:58]} 4. Nf3 {[%clk 0:02:58]}  Bg7 {[%clk 0:02:58]} 5. g3 {[%clk 0:02:59]}  d6 {[%clk 0:02:51]} 6. Bg2 {[%clk 0:02:59]}  Nf6 {[%clk 0:02:52]} 7. O-O {[%clk 0:02:58]}  O-O {[%clk 0:02:52]} 8. d3 {[%clk 0:02:58]}  Rb8 {[%clk 0:02:53]} 9. h3 {[%clk 0:02:56]}  b5 {[%clk 0:02:53]} 10. g4 {[%clk 0:02:55]}  b4 {[%clk 0:02:53]} 11. Ne2 {[%clk 0:02:55]}  a5 {[%clk 0:02:52]} 12. g5 {[%clk 0:02:54]}  Nd7 {[%clk 0:02:52]} 13. Ng3 {[%clk 0:02:54]}  Ba6 {[%clk 0:02:52]} 14. f5 {[%clk 0:02:52]}  c4 {[%clk 0:02:50]} 15. h4 {[%clk 0:02:44]}  cxd3 {[%clk 0:02:42]} 16. cxd3 {[%clk 0:02:45]}  Nde5 {[%clk 0:02:43]} 17. Ne1 {[%clk 0:02:42]}  Qb6+ {[%clk 0:02:30]} 18. Kh1 {[%clk 0:02:32]}  Qb5 {[%clk 0:02:17]} 19. f6 {[%clk 0:02:23]}  exf6 {[%clk 0:02:12]} 20. gxf6 {[%clk 0:02:24]}  Bh8 {[%clk 0:02:12]} 21. d4 {[%clk 0:02:17]}  Nd7 {[%clk 0:02:04]} 22. Bg5 {[%clk 0:02:02]}  Qb6 {[%clk 0:01:55]} 23. Qg4 {[%clk 0:01:57]}  Bxf1 {[%clk 0:01:52]} 24. Qxd7 {[%clk 0:01:39]}  Bxg2+ {[%clk 0:01:51]} 25. Nxg2 {[%clk 0:01:40]}  Nxd4 {[%clk 0:01:44]} 26. Ne3 {[%clk 0:01:31]}  Qc6 {[%clk 0:01:09]} 27. Nef5 {[%clk 0:01:24]}  gxf5 {[%clk 0:00:57]} 28. Qxc6 {[%clk 0:01:23]}  Nxc6 {[%clk 0:00:56]} 29. Nxf5 {[%clk 0:01:24]}  Rfe8 {[%clk 0:00:51]} 30. Rg1 {[%clk 0:01:22]}  h5 {[%clk 0:00:30]} 31. Nxd6 {[%clk 0:00:53]}  Re6 {[%clk 0:00:24]} 32. e5 {[%clk 0:00:45]}  Nxe5 {[%clk 0:00:21]} 33. Bf4+ {[%clk 0:00:31]}  Ng6 {[%clk 0:00:19]} 34. Nf5 {[%clk 0:00:25]}  Rxf6 {[%clk 0:00:16]} 35. Nh6+ {[%clk 0:00:17]}  Kh7 {[%clk 0:00:15]} 36. Bxb8 {[%clk 0:00:18]}  Kxh6 {[%clk 0:00:15]} 37. Bc7 {[%clk 0:00:18]}  Nxh4 {[%clk 0:00:13]} 38. Bd8 {[%clk 0:00:17]}  Rf3 {[%clk 0:00:12]} 39. Rg8 {[%clk 0:00:13]}  Rh3+ {[%clk 0:00:11]} 40. Kg1 {[%clk 0:00:13]}  Bd4+ {[%clk 0:00:11]} 41. Kf1 {[%clk 0:00:13]}  Rh1+ {[%clk 0:00:11]} 42. Ke2 {[%clk 0:00:14]}  Rh2+ {[%clk 0:00:12]} 43. Kd3 {[%clk 0:00:13]}  Bf2 {[%clk 0:00:12]} 44. Bc7 {[%clk 0:00:12]}  Rh3+ {[%clk 0:00:11]} 45. Kc4 {[%clk 0:00:12]}  Ng6 {[%clk 0:00:10]} 46. Kb5 {[%clk 0:00:11]}  Rd3 {[%clk 0:00:09]} 47. Kxa5 {[%clk 0:00:11]}  h4 {[%clk 0:00:09]} 48. Rd8 {[%clk 0:00:08]}  Rxd8 {[%clk 0:00:08]} 49. Bxd8 {[%clk 0:00:08]}  h3 {[%clk 0:00:08]} 50. Bc7 {[%clk 0:00:09]}  f5 {[%clk 0:00:09]} 51. Bh2 {[%clk 0:00:07]}  f4 {[%clk 0:00:09]} 52. Kxb4 {[%clk 0:00:07]}  Bg3 {[%clk 0:00:10]} 53. Bg1 {[%clk 0:00:07]}  h2 {[%clk 0:00:10]} 54. Bxh2 {[%clk 0:00:07]}  Bxh2 {[%clk 0:00:11]} 55. Kc4 {[%clk 0:00:07]}  f3 {[%clk 0:00:11]} 56. Kd3 {[%clk 0:00:08]}  f2 {[%clk 0:00:12]} 57. Ke2 {[%clk 0:00:08]}  Bg3 {[%clk 0:00:12]} 58. a4 {[%clk 0:00:08]}  Nf4+ {[%clk 0:00:13]} 59. Kf1 {[%clk 0:00:08]}  Kg5 {[%clk 0:00:11]} 60. a5 {[%clk 0:00:08]}  Nd5 {[%clk 0:00:11]} 61. Ke2 {[%clk 0:00:07]}  Kf4 {[%clk 0:00:11]} 62. a6 {[%clk 0:00:07]}  Ke4 {[%clk 0:00:09]} 63. a7 {[%clk 0:00:07]}  Nb6 {[%clk 0:00:09]} 64. b4 {[%clk 0:00:07]}  Na8 {[%clk 0:00:09]} 65. Kf1 {[%clk 0:00:07]}  Kd5 {[%clk 0:00:10]} 66. Kg2 {[%clk 0:00:07]}  Kc6 {[%clk 0:00:10]} 67. b5+ {[%clk 0:00:07]}  Kxb5 {[%clk 0:00:11]} 68. Kxg3 {[%clk 0:00:08]}  f1=Q {[%clk 0:00:10]} 69. Kh2 {[%clk 0:00:08]}  Qd3 {[%clk 0:00:11]} 70. Kg2 {[%clk 0:00:08]}  Qf5 {[%clk 0:00:11]} 71. Kg3 {[%clk 0:00:08]}  Kc6 {[%clk 0:00:11]} 72. Kh2 {[%clk 0:00:09]}  Kb7 {[%clk 0:00:11]} 73. Kh1 {[%clk 0:00:10]}  Kxa7 {[%clk 0:00:12]} 74. Kh2 {[%clk 0:00:11]}  Kb7 {[%clk 0:00:13]} 75. Kh1 {[%clk 0:00:12]}  Kc6 {[%clk 0:00:13]} 76. Kh2 {[%clk 0:00:13]}  Kd5 {[%clk 0:00:14]} 77. Kh1 {[%clk 0:00:14]}  Ke4 {[%clk 0:00:15]} 78. Kh2 {[%clk 0:00:14]}  Qg4 {[%clk 0:00:15]} 79. Kh1 {[%clk 0:00:15]}  Kf3 {[%clk 0:00:15]} 80. Kh2 {[%clk 0:00:16]}  Qg2# {[%clk 0:00:16]} 0-1


[Site "https://www.chess.com"]

[Event "Titled Tuesday Blitz December 20 Late 2022"]
[White "Moksh Amit Doshi"]
[Black "Keymer, Vincent"]
[WhiteFideId "25064967"]
[BlackFideId "12940690"]
[WhiteElo "2297"]
[BlackElo "2600"]
[Result "0-1"]
[Round "06"]
[TimeControl "180+1"]
[Date "2022.12.20"]
[WhiteClock "0:01:52"]
[BlackClock "0:02:26"]

1. d4 {[%clk 0:02:59]}  Nf6 {[%clk 0:02:59]} 2. c4 {[%clk 0:02:58]}  e6 {[%clk 0:03:00]} 3. Nc3 {[%clk 0:02:58]}  Bb4 {[%clk 0:03:00]} 4. Qc2 {[%clk 0:02:59]}  c5 {[%clk 0:03:00]} 5. dxc5 {[%clk 0:02:58]}  O-O {[%clk 0:03:00]} 6. Nf3 {[%clk 0:02:56]}  Na6 {[%clk 0:02:59]} 7. g3 {[%clk 0:02:56]}  Nxc5 {[%clk 0:02:59]} 8. Bg2 {[%clk 0:02:54]}  Nce4 {[%clk 0:02:59]} 9. O-O {[%clk 0:02:53]}  Bxc3 {[%clk 0:03:00]} 10. bxc3 {[%clk 0:02:54]}  d5 {[%clk 0:03:00]} 11. Ba3 {[%clk 0:02:38]}  Re8 {[%clk 0:02:59]} 12. Rfd1 {[%clk 0:02:27]}  Qc7 {[%clk 0:02:35]} 13. cxd5 {[%clk 0:02:08]}  Qxc3 {[%clk 0:02:31]} 14. Rac1 {[%clk 0:01:52]}  Qxa3 {[%clk 0:02:26]} 0-1


[Site "https://www.chess.com"]

[Event "Titled Tuesday Blitz December 20 Late 2022"]
[White "Musovic, Armin"]
[Black "Rorrer, Grayson"]
[WhiteFideId "939935"]
[BlackFideId "30944996"]
[WhiteElo "2288"]
[BlackElo "2200"]
[Result "0-1"]
[Round "06"]
[TimeControl "180+1"]
[Date "2022.12.20"]
[WhiteClock "0:01:08"]
[BlackClock "0:00:41"]

1. a3 {[%clk 0:02:57]}  Nf6 {[%clk 0:02:52]} 2. Nc3 {[%clk 0:02:57]}  d5 {[%clk 0:02:51]} 3. d3 {[%clk 0:02:56]}  d4 {[%clk 0:02:51]} 4. Ne4 {[%clk 0:02:56]}  Nxe4 {[%clk 0:02:51]} 5. dxe4 {[%clk 0:02:57]}  c5 {[%clk 0:02:51]} 6. Nf3 {[%clk 0:02:58]}  Nc6 {[%clk 0:02:52]} 7. e3 {[%clk 0:02:59]}  Bg4 {[%clk 0:02:52]} 8. exd4 {[%clk 0:02:59]}  Bxf3 {[%clk 0:02:49]} 9. Qxf3 {[%clk 0:02:55]}  Nxd4 {[%clk 0:02:50]} 10. Qd1 {[%clk 0:02:56]}  e6 {[%clk 0:02:44]} 11. c3 {[%clk 0:02:55]}  Nc6 {[%clk 0:02:44]} 12. Qxd8+ {[%clk 0:02:55]}  Rxd8 {[%clk 0:02:43]} 13. Be3 {[%clk 0:02:55]}  a6 {[%clk 0:02:35]} 14. Rd1 {[%clk 0:02:51]}  Rxd1+ {[%clk 0:02:31]} 15. Kxd1 {[%clk 0:02:52]}  Be7 {[%clk 0:02:31]} 16. Kc2 {[%clk 0:02:52]}  Kd7 {[%clk 0:02:30]} 17. Be2 {[%clk 0:02:44]}  Kc7 {[%clk 0:02:27]} 18. h4 {[%clk 0:02:43]}  h5 {[%clk 0:02:20]} 19. Rd1 {[%clk 0:02:37]}  Bxh4 {[%clk 0:02:12]} 20. Bxc5 {[%clk 0:02:35]}  Be7 {[%clk 0:02:12]} 21. Be3 {[%clk 0:02:31]}  g6 {[%clk 0:02:10]} 22. b4 {[%clk 0:02:31]}  Rd8 {[%clk 0:02:05]} 23. Rh1 {[%clk 0:02:30]}  Ne5 {[%clk 0:01:38]} 24. a4 {[%clk 0:02:26]}  Bf6 {[%clk 0:01:22]} 25. f4 {[%clk 0:02:14]}  Nd7 {[%clk 0:01:15]} 26. e5 {[%clk 0:02:08]}  Bg7 {[%clk 0:01:10]} 27. g4 {[%clk 0:02:03]}  hxg4 {[%clk 0:01:07]} 28. Rh7 {[%clk 0:02:03]}  Rg8 {[%clk 0:01:05]} 29. Bxg4 {[%clk 0:02:01]}  Nf8 {[%clk 0:01:04]} 30. Rh2 {[%clk 0:02:00]}  Rh8 {[%clk 0:01:03]} 31. Rxh8 {[%clk 0:01:36]}  Bxh8 {[%clk 0:01:04]} 32. a5 {[%clk 0:01:33]}  Nd7 {[%clk 0:01:03]} 33. Kd3 {[%clk 0:01:33]}  Bg7 {[%clk 0:00:53]} 34. Ke4 {[%clk 0:01:32]}  f5+ {[%clk 0:00:47]} 35. exf6 {[%clk 0:01:32]}  Nxf6+ {[%clk 0:00:47]} 36. Kf3 {[%clk 0:01:30]}  Nxg4 {[%clk 0:00:48]} 37. Kxg4 {[%clk 0:01:28]}  Bxc3 {[%clk 0:00:48]} 38. Bb6+ {[%clk 0:01:20]}  Kc6 {[%clk 0:00:48]} 39. Kg5 {[%clk 0:01:21]}  Bxb4 {[%clk 0:00:45]} 40. Kxg6 {[%clk 0:01:21]}  Bd2 {[%clk 0:00:45]} 41. f5 {[%clk 0:01:07]}  exf5 {[%clk 0:00:44]} 42. Kxf5 {[%clk 0:01:07]}  Kb5 {[%clk 0:00:42]} 43. Ke4 {[%clk 0:01:08]}  Bxa5 {[%clk 0:00:42]} 44. Be3 {[%clk 0:01:08]}  Bb6 {[%clk 0:00:42]} 45. Bd2 {[%clk 0:01:08]}  Kc4 {[%clk 0:00:42]} 46. Kf3 {[%clk 0:01:07]}  a5 {[%clk 0:00:41]} 47. Ke2 {[%clk 0:01:07]}  a4 {[%clk 0:00:40]} 48. Kd1 {[%clk 0:01:07]}  Bd4 {[%clk 0:00:41]} 49. Kc2 {[%clk 0:01:07]}  a3 {[%clk 0:00:40]} 50. Kb1 {[%clk 0:01:07]}  Kb3 {[%clk 0:00:41]} 51. Kc1 {[%clk 0:01:07]}  a2 {[%clk 0:00:41]} 52. Kd1 {[%clk 0:01:08]}  a1=Q+ {[%clk 0:00:41]} 53. Ke2 {[%clk 0:01:08]}  Qa6+ {[%clk 0:00:41]} 0-1


[Site "https://www.chess.com"]

[Event "Titled Tuesday Blitz December 20 Late 2022"]
[White "Nasir, Zehn"]
[Black "Andreassen, Lars"]
[WhiteFideId "2613239"]
[BlackFideId "1504878"]
[WhiteElo "1993"]
[BlackElo "2119"]
[Result "1-0"]
[Round "06"]
[TimeControl "180+1"]
[Date "2022.12.21"]
[WhiteClock "0:00:17"]
[BlackClock "0:00:07"]

1. d4 {[%clk 0:03:00]}  d5 {[%clk 0:02:59]} 2. Bf4 {[%clk 0:03:00]}  e6 {[%clk 0:02:59]} 3. e3 {[%clk 0:03:00]}  Bd6 {[%clk 0:02:56]} 4. Bg3 {[%clk 0:03:00]}  Nf6 {[%clk 0:02:56]} 5. Nd2 {[%clk 0:02:59]}  O-O {[%clk 0:02:53]} 6. Bd3 {[%clk 0:02:59]}  b6 {[%clk 0:02:54]} 7. Qe2 {[%clk 0:02:56]}  c5 {[%clk 0:02:53]} 8. c3 {[%clk 0:02:56]}  Nc6 {[%clk 0:02:53]} 9. f4 {[%clk 0:02:56]}  Bb7 {[%clk 0:02:49]} 10. Ngf3 {[%clk 0:02:55]}  Ne7 {[%clk 0:02:44]} 11. O-O {[%clk 0:02:51]}  Ne4 {[%clk 0:02:44]} 12. Bh4 {[%clk 0:02:47]}  Qc7 {[%clk 0:02:40]} 13. Bxe4 {[%clk 0:02:30]}  dxe4 {[%clk 0:02:40]} 14. Ng5 {[%clk 0:02:31]}  Nf5 {[%clk 0:02:04]} 15. Bf2 {[%clk 0:02:01]}  cxd4 {[%clk 0:02:03]} 16. cxd4 {[%clk 0:02:00]}  Qc2 {[%clk 0:02:02]} 17. b3 {[%clk 0:01:45]}  Bb4 {[%clk 0:01:57]} 18. Rfd1 {[%clk 0:01:37]}  h6 {[%clk 0:01:44]} 19. a3 {[%clk 0:01:28]}  Bxd2 {[%clk 0:01:34]} 20. Nh3 {[%clk 0:01:12]}  Qxb3 {[%clk 0:01:15]} 21. Rxd2 {[%clk 0:01:09]}  Rac8 {[%clk 0:01:08]} 22. g4 {[%clk 0:01:09]}  Nd6 {[%clk 0:01:02]} 23. g5 {[%clk 0:01:09]}  Nf5 {[%clk 0:00:43]} 24. gxh6 {[%clk 0:01:08]}  Nxh6 {[%clk 0:00:42]} 25. Kh1 {[%clk 0:01:07]}  Rc3 {[%clk 0:00:32]} 26. Rg1 {[%clk 0:01:04]}  Nf5 {[%clk 0:00:18]} 27. Ng5 {[%clk 0:01:04]}  g6 {[%clk 0:00:17]} 28. Qg4 {[%clk 0:00:50]}  Kg7 {[%clk 0:00:12]} 29. Bh4 {[%clk 0:00:18]}  Rxe3 {[%clk 0:00:10]} 30. Nxf7 {[%clk 0:00:17]}  Rxf7 {[%clk 0:00:09]} 31. Qxg6+ {[%clk 0:00:16]}  Kf8 {[%clk 0:00:07]} 32. Qg8# {[%clk 0:00:17]} 1-0


[Site "https://www.chess.com"]

[Event "Titled Tuesday Blitz December 20 Late 2022"]
[White "Pakleza, Zbigniew"]
[Black "Cruz Mendez, Jean Marco"]
[WhiteFideId "1119290"]
[BlackFideId "3526402"]
[WhiteElo "2746"]
[BlackElo "2561"]
[Result "1-0"]
[Round "06"]
[TimeControl "180+1"]
[Date "2022.12.21"]
[WhiteClock "0:00:24"]
[BlackClock "0:00:33"]

1. d4 {[%clk 0:02:53]}  Nf6 {[%clk 0:02:58]} 2. Nf3 {[%clk 0:02:53]}  d5 {[%clk 0:02:58]} 3. Bf4 {[%clk 0:02:53]}  e6 {[%clk 0:02:58]} 4. e3 {[%clk 0:02:53]}  Bd6 {[%clk 0:02:58]} 5. Bg3 {[%clk 0:02:53]}  O-O {[%clk 0:02:58]} 6. Nbd2 {[%clk 0:02:53]}  c5 {[%clk 0:02:59]} 7. c3 {[%clk 0:02:53]}  Qc7 {[%clk 0:02:59]} 8. Ne5 {[%clk 0:02:52]}  Nbd7 {[%clk 0:02:58]} 9. f4 {[%clk 0:02:52]}  Ne4 {[%clk 0:02:59]} 10. Nxe4 {[%clk 0:02:51]}  dxe4 {[%clk 0:03:00]} 11. Nc4 {[%clk 0:02:49]}  f5 {[%clk 0:02:53]} 12. Nxd6 {[%clk 0:02:15]}  Qxd6 {[%clk 0:02:54]} 13. dxc5 {[%clk 0:02:09]}  Qxc5 {[%clk 0:02:53]} 14. Qd4 {[%clk 0:02:02]}  Qxd4 {[%clk 0:02:47]} 15. exd4 {[%clk 0:02:03]}  Nf6 {[%clk 0:02:44]} 16. c4 {[%clk 0:01:37]}  Rd8 {[%clk 0:02:43]} 17. Bf2 {[%clk 0:01:33]}  Bd7 {[%clk 0:02:42]} 18. h3 {[%clk 0:01:29]}  Rac8 {[%clk 0:02:42]} 19. a4 {[%clk 0:01:18]}  a5 {[%clk 0:02:38]} 20. Be2 {[%clk 0:01:14]}  Bc6 {[%clk 0:02:33]} 21. O-O {[%clk 0:01:12]}  b6 {[%clk 0:02:30]} 22. Rfd1 {[%clk 0:01:11]}  Bb7 {[%clk 0:02:30]} 23. Rab1 {[%clk 0:01:07]}  Ba6 {[%clk 0:02:25]} 24. b3 {[%clk 0:01:04]}  h6 {[%clk 0:02:25]} 25. Kf1 {[%clk 0:01:02]}  g5 {[%clk 0:02:25]} 26. Be3 {[%clk 0:01:00]}  gxf4 {[%clk 0:02:07]} 27. Bxf4 {[%clk 0:01:01]}  Kg7 {[%clk 0:02:07]} 28. Kf2 {[%clk 0:01:02]}  Kg6 {[%clk 0:02:06]} 29. Ke3 {[%clk 0:00:59]}  Rd7 {[%clk 0:01:38]} 30. Be5 {[%clk 0:00:57]}  Kg5 {[%clk 0:01:29]} 31. Rdc1 {[%clk 0:00:54]}  h5 {[%clk 0:01:22]} 32. b4 {[%clk 0:00:50]}  Bb7 {[%clk 0:00:51]} 33. bxa5 {[%clk 0:00:45]}  bxa5 {[%clk 0:00:52]} 34. Rb6 {[%clk 0:00:34]}  Rc6 {[%clk 0:00:50]} 35. Rcb1 {[%clk 0:00:30]}  Ba8 {[%clk 0:00:45]} 36. Rb8 {[%clk 0:00:28]}  Ra6 {[%clk 0:00:42]} 37. Rf8 {[%clk 0:00:25]}  Nh7 {[%clk 0:00:32]} 38. Rg8+ {[%clk 0:00:25]}  Kh6 {[%clk 0:00:33]} 39. Bf4+ {[%clk 0:00:24]} 1-0


[Site "https://www.chess.com"]

[Event "Titled Tuesday Blitz December 20 Late 2022"]
[White "Piliczewski, Bogusz"]
[Black "Clawitter, Craig"]
[WhiteFideId "1104144"]
[BlackFideId "2023105"]
[WhiteElo "1896"]
[BlackElo "2223"]
[Result "1/2-1/2"]
[Round "06"]
[TimeControl "180+1"]
[Date "2022.12.21"]
[WhiteClock "0:00:39"]
[BlackClock "0:00:07"]

1. d4 {[%clk 0:03:00]}  e6 {[%clk 0:03:00]} 2. Nf3 {[%clk 0:03:00]}  Nf6 {[%clk 0:03:00]} 3. Bf4 {[%clk 0:03:00]}  b6 {[%clk 0:03:00]} 4. e3 {[%clk 0:03:01]}  Bb7 {[%clk 0:02:59]} 5. Be2 {[%clk 0:03:01]}  Be7 {[%clk 0:03:00]} 6. h3 {[%clk 0:03:01]}  c5 {[%clk 0:02:59]} 7. O-O {[%clk 0:03:01]}  O-O {[%clk 0:02:58]} 8. Nbd2 {[%clk 0:03:00]}  cxd4 {[%clk 0:02:56]} 9. exd4 {[%clk 0:02:59]}  d6 {[%clk 0:02:53]} 10. c3 {[%clk 0:02:55]}  a6 {[%clk 0:02:52]} 11. a4 {[%clk 0:02:54]}  Re8 {[%clk 0:02:47]} 12. Re1 {[%clk 0:02:49]}  Nbd7 {[%clk 0:02:46]} 13. Bd3 {[%clk 0:02:44]}  Nf8 {[%clk 0:02:45]} 14. Qe2 {[%clk 0:02:41]}  Ng6 {[%clk 0:02:44]} 15. Bh2 {[%clk 0:02:40]}  d5 {[%clk 0:02:40]} 16. Ne5 {[%clk 0:02:37]}  Nxe5 {[%clk 0:02:30]} 17. dxe5 {[%clk 0:02:36]}  Nd7 {[%clk 0:02:30]} 18. f4 {[%clk 0:02:36]}  Nc5 {[%clk 0:01:49]} 19. Bc2 {[%clk 0:02:34]}  b5 {[%clk 0:01:49]} 20. axb5 {[%clk 0:02:24]}  axb5 {[%clk 0:01:49]} 21. Qxb5 {[%clk 0:02:10]}  d4 {[%clk 0:01:27]} 22. Ne4 {[%clk 0:01:48]}  Rxa1 {[%clk 0:01:19]} 23. Rxa1 {[%clk 0:01:44]}  Bxe4 {[%clk 0:01:17]} 24. Bxe4 {[%clk 0:01:29]}  Nxe4 {[%clk 0:01:17]} 25. Rd1 {[%clk 0:01:24]}  Qb8 {[%clk 0:00:49]} 26. Qxb8 {[%clk 0:01:17]}  Rxb8 {[%clk 0:00:49]} 27. cxd4 {[%clk 0:01:17]}  Rxb2 {[%clk 0:00:45]} 28. Kf1 {[%clk 0:01:14]}  h5 {[%clk 0:00:31]} 29. d5 {[%clk 0:01:10]}  Rf2+ {[%clk 0:00:28]} 30. Kg1 {[%clk 0:01:03]}  Bc5 {[%clk 0:00:20]} 31. Kh1 {[%clk 0:01:03]}  Rd2 {[%clk 0:00:17]} 32. Rxd2 {[%clk 0:01:01]}  Nxd2 {[%clk 0:00:18]} 33. d6 {[%clk 0:01:01]}  Kf8 {[%clk 0:00:17]} 34. Bg3 {[%clk 0:01:00]}  Ke8 {[%clk 0:00:17]} 35. Be1 {[%clk 0:00:58]}  Ne4 {[%clk 0:00:17]} 36. g4 {[%clk 0:00:57]}  hxg4 {[%clk 0:00:16]} 37. hxg4 {[%clk 0:00:56]}  Kd7 {[%clk 0:00:16]} 38. Kg2 {[%clk 0:00:56]}  Nxd6 {[%clk 0:00:10]} 39. exd6 {[%clk 0:00:56]}  Bxd6 {[%clk 0:00:10]} 40. Kf3 {[%clk 0:00:56]}  g6 {[%clk 0:00:10]} 41. Bd2 {[%clk 0:00:56]}  Kc6 {[%clk 0:00:10]} 42. Ke4 {[%clk 0:00:57]}  f5+ {[%clk 0:00:10]} 43. gxf5 {[%clk 0:00:55]}  gxf5+ {[%clk 0:00:11]} 44. Kf3 {[%clk 0:00:55]}  Kd5 {[%clk 0:00:12]} 45. Bc3 {[%clk 0:00:54]}  Kc4 {[%clk 0:00:11]} 46. Bf6 {[%clk 0:00:54]}  Kd3 {[%clk 0:00:11]} 47. Bg7 {[%clk 0:00:53]}  Bc5 {[%clk 0:00:09]} 48. Bf6 {[%clk 0:00:53]}  Bd4 {[%clk 0:00:09]} 49. Be7 {[%clk 0:00:53]}  e5 {[%clk 0:00:09]} 50. fxe5 {[%clk 0:00:53]}  Bxe5 {[%clk 0:00:10]} 51. Bg5 {[%clk 0:00:52]}  Kd4 {[%clk 0:00:10]} 52. Bh6 {[%clk 0:00:52]}  Kd5 {[%clk 0:00:10]} 53. Bg5 {[%clk 0:00:52]}  Ke6 {[%clk 0:00:10]} 54. Bd2 {[%clk 0:00:51]}  Kf7 {[%clk 0:00:11]} 55. Be3 {[%clk 0:00:50]}  Kg6 {[%clk 0:00:11]} 56. Bd2 {[%clk 0:00:50]}  Kf7 {[%clk 0:00:09]} 57. Be3 {[%clk 0:00:50]}  Ke6 {[%clk 0:00:10]} 58. Bd2 {[%clk 0:00:49]}  Kd5 {[%clk 0:00:11]} 59. Be3 {[%clk 0:00:49]}  Kc4 {[%clk 0:00:11]} 60. Bc1 {[%clk 0:00:49]}  Kd3 {[%clk 0:00:12]} 61. Bh6 {[%clk 0:00:49]}  Bf6 {[%clk 0:00:09]} 62. Bf4 {[%clk 0:00:48]}  Kd4 {[%clk 0:00:09]} 63. Be3+ {[%clk 0:00:48]}  Kd3 {[%clk 0:00:09]} 64. Bc1 {[%clk 0:00:47]}  Kc2 {[%clk 0:00:08]} 65. Bh6 {[%clk 0:00:46]}  Kd3 {[%clk 0:00:09]} 66. Kf4 {[%clk 0:00:40]}  Bg5+ {[%clk 0:00:07]} 67. Bxg5 {[%clk 0:00:39]}  Kd4 {[%clk 0:00:07]} 68. Kxf5 {[%clk 0:00:39]} 1/2-1/2


[Site "https://www.chess.com"]

[Event "Titled Tuesday Blitz December 20 Late 2022"]
[White "Radovanovic, Dusan"]
[Black "Ardila, Oscar Humberto"]
[WhiteFideId "926868"]
[BlackFideId "4404742"]
[WhiteElo "2337"]
[BlackElo "1961"]
[Result "0-1"]
[Round "06"]
[TimeControl "180+1"]
[Date "2022.12.21"]
[WhiteClock "0:00:04"]
[BlackClock "0:00:17"]

1. e4 {[%clk 0:03:00]}  e5 {[%clk 0:03:00]} 2. Nf3 {[%clk 0:02:57]}  Nf6 {[%clk 0:03:00]} 3. Nc3 {[%clk 0:02:57]}  Nc6 {[%clk 0:03:00]} 4. Bb5 {[%clk 0:02:56]}  Bb4 {[%clk 0:02:59]} 5. O-O {[%clk 0:02:56]}  O-O {[%clk 0:02:59]} 6. d3 {[%clk 0:02:56]}  d6 {[%clk 0:02:59]} 7. Bg5 {[%clk 0:02:55]}  Bxc3 {[%clk 0:02:59]} 8. bxc3 {[%clk 0:02:55]}  Qe7 {[%clk 0:03:00]} 9. Re1 {[%clk 0:02:55]}  Nd8 {[%clk 0:03:00]} 10. d4 {[%clk 0:02:56]}  Ne6 {[%clk 0:03:00]} 11. Bd2 {[%clk 0:02:56]}  Rd8 {[%clk 0:03:00]} 12. Bd3 {[%clk 0:02:51]}  Nf8 {[%clk 0:03:00]} 13. Nh4 {[%clk 0:02:45]}  Ng4 {[%clk 0:02:49]} 14. Nf3 {[%clk 0:02:24]}  Ng6 {[%clk 0:02:48]} 15. h3 {[%clk 0:02:24]}  Nf6 {[%clk 0:02:48]} 16. a4 {[%clk 0:02:17]}  c5 {[%clk 0:02:47]} 17. a5 {[%clk 0:02:14]}  Bd7 {[%clk 0:02:45]} 18. a6 {[%clk 0:02:13]}  b6 {[%clk 0:02:44]} 19. Kh2 {[%clk 0:02:07]}  Rac8 {[%clk 0:02:43]} 20. g3 {[%clk 0:02:04]}  Bc6 {[%clk 0:02:42]} 21. d5 {[%clk 0:02:03]}  Be8 {[%clk 0:02:34]} 22. c4 {[%clk 0:02:03]}  Bd7 {[%clk 0:02:29]} 23. Kg2 {[%clk 0:02:02]}  Rb8 {[%clk 0:02:29]} 24. Qe2 {[%clk 0:01:58]}  h6 {[%clk 0:02:28]} 25. Nh2 {[%clk 0:01:54]}  Rf8 {[%clk 0:02:27]} 26. h4 {[%clk 0:01:54]}  Rfe8 {[%clk 0:02:11]} 27. h5 {[%clk 0:01:50]}  Nf8 {[%clk 0:02:11]} 28. f4 {[%clk 0:01:44]}  N8h7 {[%clk 0:01:58]} 29. fxe5 {[%clk 0:01:26]}  dxe5 {[%clk 0:01:58]} 30. Rf1 {[%clk 0:01:21]}  Rf8 {[%clk 0:01:53]} 31. Be3 {[%clk 0:01:12]}  Ne8 {[%clk 0:01:52]} 32. Ng4 {[%clk 0:00:58]}  Bxg4 {[%clk 0:01:48]} 33. Qxg4 {[%clk 0:00:57]}  Kh8 {[%clk 0:01:49]} 34. Rf2 {[%clk 0:00:56]}  Nhf6 {[%clk 0:01:45]} 35. Qh4 {[%clk 0:00:55]}  Ng8 {[%clk 0:01:08]} 36. Qh3 {[%clk 0:00:48]}  Rd8 {[%clk 0:01:02]} 37. Raf1 {[%clk 0:00:46]}  Nd6 {[%clk 0:00:56]} 38. g4 {[%clk 0:00:44]}  f6 {[%clk 0:00:54]} 39. Qg3 {[%clk 0:00:21]}  Nf7 {[%clk 0:00:50]} 40. Rf5 {[%clk 0:00:19]}  Ng5 {[%clk 0:00:47]} 41. Bxg5 {[%clk 0:00:19]}  hxg5 {[%clk 0:00:47]} 42. Qh2 {[%clk 0:00:17]}  Nh6 {[%clk 0:00:47]} 43. Kg3 {[%clk 0:00:15]}  Qd7 {[%clk 0:00:38]} 44. Be2 {[%clk 0:00:14]}  Nxf5+ {[%clk 0:00:33]} 45. Rxf5 {[%clk 0:00:13]}  Kg8 {[%clk 0:00:34]} 46. h6 {[%clk 0:00:13]}  Qf7 {[%clk 0:00:28]} 47. Rf1 {[%clk 0:00:11]}  Qg6 {[%clk 0:00:28]} 48. Bd3 {[%clk 0:00:10]}  Qxh6 {[%clk 0:00:27]} 49. Qg2 {[%clk 0:00:10]}  Qh4+ {[%clk 0:00:27]} 50. Kf3 {[%clk 0:00:10]}  Qh7 {[%clk 0:00:24]} 51. Rh1 {[%clk 0:00:11]}  Qg6 {[%clk 0:00:24]} 52. Qh3 {[%clk 0:00:11]}  Kf7 {[%clk 0:00:24]} 53. Qf1 {[%clk 0:00:11]}  Rh8 {[%clk 0:00:24]} 54. Rg1 {[%clk 0:00:10]}  Rh2 {[%clk 0:00:23]} 55. Qb1 {[%clk 0:00:09]}  Qh6 {[%clk 0:00:21]} 56. Rg3 {[%clk 0:00:09]}  Rh3 {[%clk 0:00:21]} 57. Qb5 {[%clk 0:00:09]}  Rxg3+ {[%clk 0:00:21]} 58. Kxg3 {[%clk 0:00:10]}  Qh4+ {[%clk 0:00:21]} 59. Kf3 {[%clk 0:00:10]}  Qh3+ {[%clk 0:00:21]} 60. Kf2 {[%clk 0:00:11]}  Qxg4 {[%clk 0:00:21]} 61. Qc6 {[%clk 0:00:10]}  Kg6 {[%clk 0:00:19]} 62. Qc7 {[%clk 0:00:10]}  Rh8 {[%clk 0:00:18]} 63. d6 {[%clk 0:00:05]}  Rh2+ {[%clk 0:00:17]} 64. Ke3 {[%clk 0:00:04]}  Qf4# {[%clk 0:00:17]} 0-1


[Site "https://www.chess.com"]